[Event "Titled Tuesday Blitz June 8 2021"]
[White "Gahan, M G"]
[Black "Cardoso Cardoso, Jose Gabriel"]
[WhiteFideId "5027373"]
[BlackFideId "4430492"]
[WhiteElo "2264"]
[BlackElo "2343"]
[Result "1-0"]
[Round "05"]
[TimeControl "180+1"]
[Date "2021.06.08"]
[WhiteClock "0:00:26"]
[BlackClock "0:00:07"]

1. e4 {[%clk 0:03:00]}  g6 {[%clk 0:02:59]} 2. h4 {[%clk 0:03:00]}  Bg7 {[%clk 0:03:00]} 3. h5 {[%clk 0:03:00]}  c5 {[%clk 0:03:01]} 4. Nc3 {[%clk 0:02:59]}  Nc6 {[%clk 0:03:00]} 5. Bc4 {[%clk 0:02:59]}  e6 {[%clk 0:02:59]} 6. d3 {[%clk 0:02:59]}  d6 {[%clk 0:02:55]} 7. Nf3 {[%clk 0:02:55]}  a6 {[%clk 0:02:54]} 8. a4 {[%clk 0:02:54]}  Rb8 {[%clk 0:02:54]} 9. Bg5 {[%clk 0:02:53]}  Qc7 {[%clk 0:02:28]} 10. h6 {[%clk 0:02:50]}  Bf6 {[%clk 0:02:25]} 11. Qd2 {[%clk 0:02:49]}  Qe7 {[%clk 0:02:20]} 12. Qf4 {[%clk 0:02:47]}  Nd4 {[%clk 0:02:16]} 13. Bxf6 {[%clk 0:02:41]}  Nxf6 {[%clk 0:02:12]} 14. Nxd4 {[%clk 0:02:34]}  cxd4 {[%clk 0:02:12]} 15. Ne2 {[%clk 0:02:35]}  e5 {[%clk 0:02:11]} 16. Qh4 {[%clk 0:02:33]}  Be6 {[%clk 0:02:10]} 17. Bxe6 {[%clk 0:02:26]}  fxe6 {[%clk 0:02:11]} 18. O-O {[%clk 0:02:23]}  Nd7 {[%clk 0:02:08]} 19. Qh3 {[%clk 0:02:21]}  O-O {[%clk 0:02:06]} 20. c3 {[%clk 0:02:21]}  dxc3 {[%clk 0:02:04]} 21. bxc3 {[%clk 0:02:21]}  Nc5 {[%clk 0:01:59]} 22. a5 {[%clk 0:02:18]}  Rf7 {[%clk 0:01:53]} 23. Qe3 {[%clk 0:02:13]}  Rbf8 {[%clk 0:01:52]} 24. d4 {[%clk 0:02:13]}  Nd7 {[%clk 0:01:51]} 25. Qh3 {[%clk 0:02:03]}  Nf6 {[%clk 0:01:50]} 26. dxe5 {[%clk 0:02:00]}  dxe5 {[%clk 0:01:50]} 27. Qf3 {[%clk 0:01:45]}  Qc5 {[%clk 0:01:46]} 28. Ra2 {[%clk 0:01:27]}  Nh5 {[%clk 0:01:39]} 29. Qg4 {[%clk 0:01:23]}  Rxf2 {[%clk 0:01:33]} 30. Qxe6+ {[%clk 0:01:23]}  Kh8 {[%clk 0:01:30]} 31. Rxf2 {[%clk 0:01:21]}  Qxf2+ {[%clk 0:01:28]} 32. Kh2 {[%clk 0:01:17]}  Qh4+ {[%clk 0:01:21]} 33. Kg1 {[%clk 0:01:17]}  Qxe4 {[%clk 0:01:15]} 34. Qe7 {[%clk 0:01:09]}  Qe3+ {[%clk 0:01:14]} 35. Kh2 {[%clk 0:01:08]}  Qxh6 {[%clk 0:01:13]} 36. Qxe5+ {[%clk 0:01:08]}  Nf6+ {[%clk 0:01:11]} 37. Kg1 {[%clk 0:01:08]}  Qg7 {[%clk 0:01:07]} 38. Nd4 {[%clk 0:01:08]}  Re8 {[%clk 0:01:02]} 39. Ne6 {[%clk 0:01:01]}  Qe7 {[%clk 0:01:02]} 40. Re2 {[%clk 0:01:00]}  Kg8 {[%clk 0:01:02]} 41. Qd4 {[%clk 0:00:57]}  Nh5 {[%clk 0:00:33]} 42. Qd5 {[%clk 0:00:44]}  Qf7 {[%clk 0:00:30]} 43. Qd6 {[%clk 0:00:31]}  Qe7 {[%clk 0:00:22]} 44. Qd5 {[%clk 0:00:31]}  Qf7 {[%clk 0:00:22]} 45. Qd6 {[%clk 0:00:31]}  Rc8 {[%clk 0:00:14]} 46. Ng5 {[%clk 0:00:28]}  Qf6 {[%clk 0:00:08]} 47. Qd7 {[%clk 0:00:28]}  Rf8 {[%clk 0:00:07]} 48. Qxh7# {[%clk 0:00:26]} 1-0


[Site "https://www.chess.com"]

[Event "Titled Tuesday Blitz June 8 2021"]
[White "Gavrilescu, David"]
[Black "Henderson de La Fuente, Lance"]
[WhiteFideId "1227190"]
[BlackFideId "32096585"]
[WhiteElo "2370"]
[BlackElo "2280"]
[Result "1-0"]
[Round "05"]
[TimeControl "180+1"]
[Date "2021.06.08"]
[WhiteClock "0:00:57"]
[BlackClock "0:00:01"]

1. e4 {[%clk 0:03:00]}  c5 {[%clk 0:02:47]} 2. Nf3 {[%clk 0:03:01]}  e6 {[%clk 0:02:47]} 3. d4 {[%clk 0:02:54]}  cxd4 {[%clk 0:02:48]} 4. Nxd4 {[%clk 0:02:55]}  Nc6 {[%clk 0:02:48]} 5. Nc3 {[%clk 0:02:55]}  Qc7 {[%clk 0:02:48]} 6. Be3 {[%clk 0:02:54]}  a6 {[%clk 0:02:48]} 7. a3 {[%clk 0:02:54]}  Nf6 {[%clk 0:02:48]} 8. f4 {[%clk 0:02:54]}  d5 {[%clk 0:02:43]} 9. e5 {[%clk 0:02:52]}  Nd7 {[%clk 0:02:43]} 10. Qg4 {[%clk 0:02:49]}  Nxd4 {[%clk 0:02:31]} 11. Bxd4 {[%clk 0:02:50]}  g6 {[%clk 0:02:29]} 12. O-O-O {[%clk 0:02:32]}  Nc5 {[%clk 0:02:19]} 13. h4 {[%clk 0:02:24]}  h5 {[%clk 0:02:18]} 14. Qf3 {[%clk 0:02:24]}  b5 {[%clk 0:02:17]} 15. g4 {[%clk 0:02:24]}  Bb7 {[%clk 0:02:14]} 16. Bh3 {[%clk 0:02:18]}  Rc8 {[%clk 0:02:04]} 17. gxh5 {[%clk 0:02:14]}  Rxh5 {[%clk 0:02:02]} 18. Bg4 {[%clk 0:02:14]}  Rh8 {[%clk 0:02:00]} 19. h5 {[%clk 0:02:14]}  gxh5 {[%clk 0:01:59]} 20. Bxh5 {[%clk 0:02:14]}  Rg8 {[%clk 0:01:49]} 21. f5 {[%clk 0:02:12]}  exf5 {[%clk 0:01:24]} 22. Qxf5 {[%clk 0:02:11]}  Qd7 {[%clk 0:01:01]} 23. e6 {[%clk 0:02:05]}  Nxe6 {[%clk 0:00:59]} 24. Rde1 {[%clk 0:02:02]}  Kd8 {[%clk 0:00:51]} 25. Bxf7 {[%clk 0:01:28]}  Nxd4 {[%clk 0:00:50]} 26. Qxd7+ {[%clk 0:01:27]}  Kxd7 {[%clk 0:00:51]} 27. Bxg8 {[%clk 0:01:28]}  Kc7 {[%clk 0:00:43]} 28. Bxd5 {[%clk 0:01:24]}  Bxd5 {[%clk 0:00:37]} 29. Nxd5+ {[%clk 0:01:25]}  Kb8 {[%clk 0:00:38]} 30. c3 {[%clk 0:01:26]}  Nb3+ {[%clk 0:00:33]} 31. Kc2 {[%clk 0:01:25]}  Nc5 {[%clk 0:00:33]} 32. Rh8 {[%clk 0:01:23]}  Bd6 {[%clk 0:00:31]} 33. Rxc8+ {[%clk 0:01:21]}  Kxc8 {[%clk 0:00:32]} 34. b4 {[%clk 0:01:19]}  Na4 {[%clk 0:00:30]} 35. Re8+ {[%clk 0:01:18]}  Kd7 {[%clk 0:00:30]} 36. Ra8 {[%clk 0:01:17]}  Kc6 {[%clk 0:00:30]} 37. Ne3 {[%clk 0:01:16]}  Kb7 {[%clk 0:00:25]} 38. Rh8 {[%clk 0:01:15]}  Nb6 {[%clk 0:00:25]} 39. Kb3 {[%clk 0:01:14]}  Bf4 {[%clk 0:00:24]} 40. Rh7+ {[%clk 0:01:12]}  Kc6 {[%clk 0:00:24]} 41. Nf5 {[%clk 0:01:09]}  Be5 {[%clk 0:00:22]} 42. Nd4+ {[%clk 0:01:06]}  Bxd4 {[%clk 0:00:19]} 43. cxd4 {[%clk 0:01:07]}  Nd5 {[%clk 0:00:16]} 44. Rh6+ {[%clk 0:01:07]}  Kb7 {[%clk 0:00:16]} 45. Kc2 {[%clk 0:01:06]}  Nb6 {[%clk 0:00:15]} 46. Kb3 {[%clk 0:01:04]}  Nd5 {[%clk 0:00:14]} 47. Rh5 {[%clk 0:01:03]}  Nb6 {[%clk 0:00:12]} 48. d5 {[%clk 0:01:03]}  Kc7 {[%clk 0:00:12]} 49. Rh7+ {[%clk 0:01:04]}  Kd6 {[%clk 0:00:11]} 50. Rh6+ {[%clk 0:01:04]}  Kc7 {[%clk 0:00:11]} 51. Rc6+ {[%clk 0:01:02]}  Kb7 {[%clk 0:00:11]} 52. Rc5 {[%clk 0:01:01]}  Nd7 {[%clk 0:00:06]} 53. Rc1 {[%clk 0:01:01]}  Nb6 {[%clk 0:00:05]} 54. d6 {[%clk 0:01:01]}  Kb8 {[%clk 0:00:02]} 55. Rc6 {[%clk 0:00:56]}  Kb7 {[%clk 0:00:01]} 56. Rc7+ {[%clk 0:00:56]}  Kb8 {[%clk 0:00:01]} 57. Rh7 {[%clk 0:00:57]} 1-0


[Site "https://www.chess.com"]

[Event "Titled Tuesday Blitz June 8 2021"]
[White "Gelman, Alexander"]
[Black "Quizon, Daniel"]
[WhiteFideId "4118316"]
[BlackFideId "5217911"]
[WhiteElo "2375"]
[BlackElo "2329"]
[Result "1-0"]
[Round "05"]
[TimeControl "180+1"]
[Date "2021.06.08"]
[WhiteClock "0:00:08"]
[BlackClock "0:01:20"]

1. d4 {[%clk 0:03:00]}  Nf6 {[%clk 0:02:59]} 2. Nc3 {[%clk 0:03:00]}  g6 {[%clk 0:03:00]} 3. e4 {[%clk 0:03:00]}  d6 {[%clk 0:03:00]} 4. f4 {[%clk 0:03:00]}  Bg7 {[%clk 0:03:00]} 5. Nf3 {[%clk 0:03:00]}  O-O {[%clk 0:03:01]} 6. e5 {[%clk 0:03:00]}  Nfd7 {[%clk 0:03:00]} 7. h4 {[%clk 0:02:59]}  c5 {[%clk 0:02:58]} 8. e6 {[%clk 0:02:59]}  fxe6 {[%clk 0:02:56]} 9. h5 {[%clk 0:02:59]}  Nc6 {[%clk 0:02:52]} 10. hxg6 {[%clk 0:02:55]}  hxg6 {[%clk 0:02:53]} 11. Bd3 {[%clk 0:02:29]}  cxd4 {[%clk 0:02:49]} 12. Bxg6 {[%clk 0:02:20]}  Rf6 {[%clk 0:02:29]} 13. Bh7+ {[%clk 0:02:11]}  Kf8 {[%clk 0:02:28]} 14. Ne4 {[%clk 0:02:09]}  Rh6 {[%clk 0:02:14]} 15. Rxh6 {[%clk 0:01:56]}  Bxh6 {[%clk 0:02:15]} 16. Nfg5 {[%clk 0:01:48]}  Nf6 {[%clk 0:02:10]} 17. Nxf6 {[%clk 0:01:28]}  exf6 {[%clk 0:02:11]} 18. Qh5 {[%clk 0:01:28]}  Bxg5 {[%clk 0:02:02]} 19. fxg5 {[%clk 0:01:27]}  Qa5+ {[%clk 0:02:02]} 20. Bd2 {[%clk 0:01:25]}  Qe5+ {[%clk 0:02:02]} 21. Kf1 {[%clk 0:01:20]}  Bd7 {[%clk 0:01:49]} 22. Re1 {[%clk 0:01:01]}  Qb5+ {[%clk 0:01:45]} 23. Bd3 {[%clk 0:01:00]}  Qd5 {[%clk 0:01:33]} 24. Qh8+ {[%clk 0:00:54]}  Kf7 {[%clk 0:01:33]} 25. Qxf6+ {[%clk 0:00:31]}  Kg8 {[%clk 0:01:34]} 26. Qg6+ {[%clk 0:00:30]}  Kf8 {[%clk 0:01:33]} 27. Qh6+ {[%clk 0:00:27]}  Ke8 {[%clk 0:01:23]} 28. Qh8+ {[%clk 0:00:25]}  Kf7 {[%clk 0:01:24]} 29. Bg6+ {[%clk 0:00:10]}  Kxg6 {[%clk 0:01:20]} 30. Qf6+ {[%clk 0:00:10]}  Kh5 {[%clk 0:01:21]} 31. Qh6+ {[%clk 0:00:08]}  Kg4 {[%clk 0:01:20]} 32. Qh3# {[%clk 0:00:08]} 1-0


[Site "https://www.chess.com"]

[Event "Titled Tuesday Blitz June 8 2021"]
[White "Gritsenko, Nikolai"]
[Black "Petesch, Gabriel"]
[WhiteFideId "14112493"]
[BlackFideId "2032465"]
[WhiteElo "2389"]
[BlackElo "2374"]
[Result "0-1"]
[Round "05"]
[TimeControl "180+1"]
[Date "2021.06.08"]
[WhiteClock "0:00:07"]
[BlackClock "0:00:08"]

1. b3 {[%clk 0:03:00]}  b6 {[%clk 0:02:50]} 2. Bb2 {[%clk 0:03:00]}  Bb7 {[%clk 0:02:50]} 3. Nf3 {[%clk 0:03:01]}  Nf6 {[%clk 0:02:50]} 4. e3 {[%clk 0:03:00]}  e6 {[%clk 0:02:48]} 5. Be2 {[%clk 0:03:00]}  Be7 {[%clk 0:02:48]} 6. O-O {[%clk 0:02:59]}  O-O {[%clk 0:02:48]} 7. c4 {[%clk 0:02:58]}  d5 {[%clk 0:02:47]} 8. d3 {[%clk 0:02:52]}  Nbd7 {[%clk 0:02:43]} 9. Nbd2 {[%clk 0:02:52]}  a5 {[%clk 0:02:42]} 10. a3 {[%clk 0:02:52]}  c5 {[%clk 0:02:32]} 11. cxd5 {[%clk 0:02:47]}  exd5 {[%clk 0:02:29]} 12. a4 {[%clk 0:02:37]}  Rc8 {[%clk 0:02:15]} 13. Rc1 {[%clk 0:02:35]}  Re8 {[%clk 0:02:08]} 14. Qc2 {[%clk 0:02:35]}  Ba6 {[%clk 0:02:05]} 15. Qb1 {[%clk 0:02:32]}  Nb8 {[%clk 0:02:03]} 16. Rfe1 {[%clk 0:02:26]}  Nc6 {[%clk 0:02:03]} 17. d4 {[%clk 0:02:06]}  Bxe2 {[%clk 0:02:02]} 18. Rxe2 {[%clk 0:02:06]}  Nb4 {[%clk 0:01:54]} 19. dxc5 {[%clk 0:01:59]}  bxc5 {[%clk 0:01:50]} 20. Ree1 {[%clk 0:01:58]}  Qb6 {[%clk 0:01:47]} 21. Red1 {[%clk 0:01:56]}  Red8 {[%clk 0:01:44]} 22. h3 {[%clk 0:01:55]}  Qe6 {[%clk 0:01:36]} 23. Ng5 {[%clk 0:01:52]}  Qa6 {[%clk 0:01:19]} 24. Bxf6 {[%clk 0:01:50]}  Bxf6 {[%clk 0:01:20]} 25. Qxh7+ {[%clk 0:01:48]}  Kf8 {[%clk 0:01:20]} 26. Ndf3 {[%clk 0:01:44]}  Ke7 {[%clk 0:00:55]} 27. e4 {[%clk 0:01:32]}  Bxg5 {[%clk 0:00:25]} 28. Nxg5 {[%clk 0:01:30]}  Qf6 {[%clk 0:00:25]} 29. Qh5 {[%clk 0:01:21]}  Qg6 {[%clk 0:00:12]} 30. Qg4 {[%clk 0:01:13]}  dxe4 {[%clk 0:00:08]} 31. Rxd8 {[%clk 0:01:02]}  Rxd8 {[%clk 0:00:09]} 32. Rxc5 {[%clk 0:00:54]}  Nd3 {[%clk 0:00:06]} 33. Rc7+ {[%clk 0:00:51]}  Ke8 {[%clk 0:00:06]} 34. Qh4 {[%clk 0:00:26]}  Rd7 {[%clk 0:00:04]} 35. Rxd7 {[%clk 0:00:22]}  Kxd7 {[%clk 0:00:04]} 36. Nxe4 {[%clk 0:00:22]}  Qe6 {[%clk 0:00:03]} 37. Qg4 {[%clk 0:00:19]}  Qxg4 {[%clk 0:00:02]} 38. hxg4 {[%clk 0:00:19]}  Kc6 {[%clk 0:00:02]} 39. Nd2 {[%clk 0:00:18]}  Kc5 {[%clk 0:00:02]} 40. Nc4 {[%clk 0:00:18]}  Kb4 {[%clk 0:00:02]} 41. Nd6 {[%clk 0:00:17]}  Nc5 {[%clk 0:00:01]} 42. Nxf7 {[%clk 0:00:15]}  Kxb3 {[%clk 0:00:01]} 43. Ne5 {[%clk 0:00:15]}  Kxa4 {[%clk 0:00:01]} 44. Nc6 {[%clk 0:00:15]}  Kb5 {[%clk 0:00:01]} 45. Nxa5 {[%clk 0:00:16]}  Kxa5 {[%clk 0:00:02]} 46. f4 {[%clk 0:00:16]}  Kb5 {[%clk 0:00:02]} 47. Kh2 {[%clk 0:00:16]}  Kc6 {[%clk 0:00:03]} 48. Kh3 {[%clk 0:00:16]}  Kd6 {[%clk 0:00:04]} 49. Kh4 {[%clk 0:00:17]}  Ke6 {[%clk 0:00:04]} 50. Kh5 {[%clk 0:00:17]}  Kf6 {[%clk 0:00:04]} 51. Kh4 {[%clk 0:00:16]}  Ne4 {[%clk 0:00:04]} 52. Kh3 {[%clk 0:00:14]}  Kg6 {[%clk 0:00:04]} 53. g3 {[%clk 0:00:14]}  Kf6 {[%clk 0:00:05]} 54. Kg2 {[%clk 0:00:14]}  Nd6 {[%clk 0:00:05]} 55. Kf3 {[%clk 0:00:15]}  Nf7 {[%clk 0:00:06]} 56. Ke4 {[%clk 0:00:14]}  Nd6+ {[%clk 0:00:05]} 57. Kd5 {[%clk 0:00:14]}  Nf7 {[%clk 0:00:06]} 58. Ke4 {[%clk 0:00:14]}  Nd6+ {[%clk 0:00:06]} 59. Kd5 {[%clk 0:00:15]}  Ne8 {[%clk 0:00:07]} 60. Kc6 {[%clk 0:00:14]}  Ke6 {[%clk 0:00:07]} 61. g5 {[%clk 0:00:13]}  g6 {[%clk 0:00:06]} 62. g4 {[%clk 0:00:12]}  Ng7 {[%clk 0:00:07]} 63. Kc5 {[%clk 0:00:11]}  Nf5 {[%clk 0:00:07]} 64. Kc4 {[%clk 0:00:04]}  Ne3+ {[%clk 0:00:07]} 65. Kd3 {[%clk 0:00:04]}  Nxg4 {[%clk 0:00:07]} 66. Ke4 {[%clk 0:00:04]}  Nf2+ {[%clk 0:00:06]} 67. Kf3 {[%clk 0:00:04]}  Nd3 {[%clk 0:00:05]} 68. Ke4 {[%clk 0:00:04]}  Nc5+ {[%clk 0:00:05]} 69. Kd4 {[%clk 0:00:05]}  Nd7 {[%clk 0:00:05]} 70. Ke4 {[%clk 0:00:05]}  Nf8 {[%clk 0:00:05]} 71. Kd4 {[%clk 0:00:05]}  Kf5 {[%clk 0:00:05]} 72. Kd5 {[%clk 0:00:05]}  Ne6 {[%clk 0:00:05]} 73. Kd6 {[%clk 0:00:06]}  Nxf4 {[%clk 0:00:06]} 74. Ke7 {[%clk 0:00:06]}  Ne6 {[%clk 0:00:07]} 75. Kf7 {[%clk 0:00:07]}  Nxg5+ {[%clk 0:00:08]} 0-1


[Site "https://www.chess.com"]

[Event "Titled Tuesday Blitz June 8 2021"]
[White "Harshavardhan G B"]
[Black "Shipov, Sergei"]
[WhiteFideId "25059009"]
[BlackFideId "4113624"]
[WhiteElo "1825"]
[BlackElo "2770"]
[Result "1/2-1/2"]
[Round "05"]
[TimeControl "180+1"]
[Date "2021.06.08"]
[WhiteClock "0:00:13"]
[BlackClock "0:00:12"]

1. d4 {[%clk 0:03:00]}  d5 {[%clk 0:02:58]} 2. c4 {[%clk 0:02:51]}  e6 {[%clk 0:02:58]} 3. Nc3 {[%clk 0:02:50]}  c5 {[%clk 0:02:58]} 4. cxd5 {[%clk 0:02:50]}  exd5 {[%clk 0:02:58]} 5. Nf3 {[%clk 0:02:49]}  Nc6 {[%clk 0:02:57]} 6. g3 {[%clk 0:02:49]}  Nf6 {[%clk 0:02:54]} 7. Bg2 {[%clk 0:02:49]}  Be7 {[%clk 0:02:54]} 8. O-O {[%clk 0:02:48]}  O-O {[%clk 0:02:54]} 9. dxc5 {[%clk 0:02:48]}  Bxc5 {[%clk 0:02:54]} 10. Bg5 {[%clk 0:02:48]}  d4 {[%clk 0:02:52]} 11. Bxf6 {[%clk 0:02:47]}  Qxf6 {[%clk 0:02:51]} 12. Nd5 {[%clk 0:02:48]}  Qf5 {[%clk 0:02:51]} 13. Nd2 {[%clk 0:02:45]}  Rd8 {[%clk 0:02:50]} 14. Nb3 {[%clk 0:02:26]}  Rxd5 {[%clk 0:02:03]} 15. e4 {[%clk 0:02:19]}  dxe3 {[%clk 0:02:03]} 16. Qxd5 {[%clk 0:02:20]}  exf2+ {[%clk 0:02:03]} 17. Kh1 {[%clk 0:02:20]}  Bb6 {[%clk 0:01:52]} 18. Nd2 {[%clk 0:02:11]}  Qxd5 {[%clk 0:01:41]} 19. Bxd5 {[%clk 0:02:12]}  Bh3 {[%clk 0:01:41]} 20. Bg2 {[%clk 0:02:11]}  Bf5 {[%clk 0:01:23]} 21. Ne4 {[%clk 0:02:07]}  Bxe4 {[%clk 0:01:20]} 22. Bxe4 {[%clk 0:02:08]}  Re8 {[%clk 0:01:17]} 23. Bf3 {[%clk 0:02:06]}  g6 {[%clk 0:01:04]} 24. Kg2 {[%clk 0:02:04]}  Ne5 {[%clk 0:00:58]} 25. Bxb7 {[%clk 0:01:45]}  Nc4 {[%clk 0:00:57]} 26. Rxf2 {[%clk 0:01:40]}  Bxf2 {[%clk 0:00:54]} 27. Kxf2 {[%clk 0:01:41]}  Nxb2 {[%clk 0:00:52]} 28. Ba6 {[%clk 0:01:41]}  Re6 {[%clk 0:00:51]} 29. Be2 {[%clk 0:01:38]}  Na4 {[%clk 0:00:51]} 30. Rc1 {[%clk 0:01:37]}  Kg7 {[%clk 0:00:41]} 31. Rc7 {[%clk 0:01:36]}  a6 {[%clk 0:00:39]} 32. Bc4 {[%clk 0:01:35]}  Rf6+ {[%clk 0:00:40]} 33. Ke3 {[%clk 0:01:35]}  h5 {[%clk 0:00:37]} 34. Kd4 {[%clk 0:01:30]}  Rf2 {[%clk 0:00:33]} 35. h4 {[%clk 0:01:26]}  Nb6 {[%clk 0:00:33]} 36. Bb3 {[%clk 0:01:23]}  a5 {[%clk 0:00:33]} 37. Kc5 {[%clk 0:01:07]}  a4 {[%clk 0:00:24]} 38. Rxf7+ {[%clk 0:00:56]}  Rxf7 {[%clk 0:00:20]} 39. Bxf7 {[%clk 0:00:57]}  Nd7+ {[%clk 0:00:14]} 40. Kd6 {[%clk 0:00:57]}  Kxf7 {[%clk 0:00:14]} 41. Kxd7 {[%clk 0:00:57]}  Kf6 {[%clk 0:00:15]} 42. Kc6 {[%clk 0:00:52]}  Kf5 {[%clk 0:00:15]} 43. Kb5 {[%clk 0:00:50]}  a3 {[%clk 0:00:15]} 44. Kb4 {[%clk 0:00:49]}  Kg4 {[%clk 0:00:16]} 45. Kxa3 {[%clk 0:00:50]}  Kxg3 {[%clk 0:00:16]} 46. Kb4 {[%clk 0:00:46]}  Kxh4 {[%clk 0:00:17]} 47. a4 {[%clk 0:00:47]}  g5 {[%clk 0:00:17]} 48. a5 {[%clk 0:00:47]}  g4 {[%clk 0:00:18]} 49. a6 {[%clk 0:00:48]}  g3 {[%clk 0:00:18]} 50. a7 {[%clk 0:00:49]}  g2 {[%clk 0:00:19]} 51. a8=Q {[%clk 0:00:50]}  g1=Q {[%clk 0:00:20]} 52. Qh8 {[%clk 0:00:29]}  Qe3 {[%clk 0:00:17]} 53. Qf6+ {[%clk 0:00:26]}  Qg5 {[%clk 0:00:17]} 54. Qf2+ {[%clk 0:00:26]}  Qg3 {[%clk 0:00:17]} 55. Qf6+ {[%clk 0:00:25]}  Kh3 {[%clk 0:00:17]} 56. Ka5 {[%clk 0:00:22]}  h4 {[%clk 0:00:17]} 57. Qf1+ {[%clk 0:00:21]}  Kg4 {[%clk 0:00:15]} 58. Qe2+ {[%clk 0:00:19]}  Qf3 {[%clk 0:00:16]} 59. Qe8 {[%clk 0:00:18]}  h3 {[%clk 0:00:15]} 60. Qg6+ {[%clk 0:00:18]}  Kh4 {[%clk 0:00:15]} 61. Ka6 {[%clk 0:00:15]}  h2 {[%clk 0:00:15]} 62. Qh6+ {[%clk 0:00:15]}  Kg3 {[%clk 0:00:15]} 63. Qg5+ {[%clk 0:00:15]}  Qg4 {[%clk 0:00:16]} 64. Qe3+ {[%clk 0:00:15]}  Kh4 {[%clk 0:00:15]} 65. Qh6+ {[%clk 0:00:15]}  Kg3 {[%clk 0:00:13]} 66. Qe3+ {[%clk 0:00:15]}  Qf3 {[%clk 0:00:14]} 67. Qg5+ {[%clk 0:00:15]}  Kf2 {[%clk 0:00:13]} 68. Qh4+ {[%clk 0:00:15]}  Kg2 {[%clk 0:00:13]} 69. Qg5+ {[%clk 0:00:15]}  Kf1 {[%clk 0:00:13]} 70. Qc1+ {[%clk 0:00:15]}  Kf2 {[%clk 0:00:13]} 71. Qc5+ {[%clk 0:00:15]}  Qe3 {[%clk 0:00:13]} 72. Qf5+ {[%clk 0:00:15]}  Ke1 {[%clk 0:00:12]} 73. Qb1+ {[%clk 0:00:15]}  Kf2 {[%clk 0:00:12]} 74. Qf5+ {[%clk 0:00:14]}  Qf3 {[%clk 0:00:12]} 75. Qc5+ {[%clk 0:00:14]}  Kg2 {[%clk 0:00:12]} 76. Qg5+ {[%clk 0:00:14]}  Kf1 {[%clk 0:00:11]} 77. Qc1+ {[%clk 0:00:14]}  Kf2 {[%clk 0:00:12]} 78. Qc5+ {[%clk 0:00:13]} 1/2-1/2


[Site "https://www.chess.com"]

[Event "Titled Tuesday Blitz June 8 2021"]
[White "Horvath, Dominik"]
[Black "Sanal, Vahap"]
[WhiteFideId "1642561"]
[BlackFideId "6300545"]
[WhiteElo "2279"]
[BlackElo "2507"]
[Result "0-1"]
[Round "05"]
[TimeControl "180+1"]
[Date "2021.06.08"]
[WhiteClock "0:00:05"]
[BlackClock "0:00:09"]

1. Nf3 {[%clk 0:03:00]}  Nf6 {[%clk 0:02:57]} 2. c4 {[%clk 0:02:58]}  e6 {[%clk 0:02:58]} 3. g3 {[%clk 0:02:58]}  d5 {[%clk 0:02:58]} 4. Bg2 {[%clk 0:02:57]}  Be7 {[%clk 0:02:58]} 5. b3 {[%clk 0:02:56]}  O-O {[%clk 0:02:58]} 6. Bb2 {[%clk 0:02:56]}  b6 {[%clk 0:02:57]} 7. O-O {[%clk 0:02:56]}  Bb7 {[%clk 0:02:57]} 8. e3 {[%clk 0:02:56]}  c5 {[%clk 0:02:57]} 9. Qe2 {[%clk 0:02:55]}  Nc6 {[%clk 0:02:56]} 10. Rd1 {[%clk 0:02:41]}  Re8 {[%clk 0:02:47]} 11. d4 {[%clk 0:02:37]}  cxd4 {[%clk 0:02:45]} 12. Nxd4 {[%clk 0:02:36]}  Nxd4 {[%clk 0:02:45]} 13. Bxd4 {[%clk 0:02:35]}  Qb8 {[%clk 0:02:42]} 14. cxd5 {[%clk 0:02:30]}  Bxd5 {[%clk 0:02:38]} 15. e4 {[%clk 0:02:25]}  Bb7 {[%clk 0:02:34]} 16. Nc3 {[%clk 0:02:25]}  h6 {[%clk 0:02:06]} 17. Rac1 {[%clk 0:02:23]}  Ba3 {[%clk 0:02:04]} 18. Rc2 {[%clk 0:02:21]}  e5 {[%clk 0:01:52]} 19. Be3 {[%clk 0:02:21]}  Bc5 {[%clk 0:01:33]} 20. Bxc5 {[%clk 0:02:00]}  bxc5 {[%clk 0:01:33]} 21. Na4 {[%clk 0:01:56]}  Bc6 {[%clk 0:01:30]} 22. Nxc5 {[%clk 0:01:55]}  Qb6 {[%clk 0:01:27]} 23. Qe3 {[%clk 0:01:35]}  Rad8 {[%clk 0:01:26]} 24. Rdc1 {[%clk 0:01:32]}  Rd4 {[%clk 0:01:22]} 25. a3 {[%clk 0:01:18]}  Red8 {[%clk 0:01:21]} 26. b4 {[%clk 0:01:19]}  Rd1+ {[%clk 0:01:13]} 27. Bf1 {[%clk 0:01:03]}  Bb5 {[%clk 0:01:11]} 28. Rxd1 {[%clk 0:01:03]}  Rxd1 {[%clk 0:01:10]} 29. Rc1 {[%clk 0:01:04]}  Ng4 {[%clk 0:00:55]} 30. Rxd1 {[%clk 0:00:50]}  Nxe3 {[%clk 0:00:54]} 31. fxe3 {[%clk 0:00:50]}  Bxf1 {[%clk 0:00:53]} 32. Kxf1 {[%clk 0:00:49]}  Qb5+ {[%clk 0:00:49]} 33. Kf2 {[%clk 0:00:47]}  Qc4 {[%clk 0:00:50]} 34. Rd2 {[%clk 0:00:33]}  g6 {[%clk 0:00:47]} 35. h4 {[%clk 0:00:33]}  Kg7 {[%clk 0:00:45]} 36. h5 {[%clk 0:00:33]}  gxh5 {[%clk 0:00:45]} 37. Rd5 {[%clk 0:00:31]}  Qa2+ {[%clk 0:00:44]} 38. Kf3 {[%clk 0:00:30]}  Qxa3 {[%clk 0:00:44]} 39. Nd3 {[%clk 0:00:29]}  Qa1 {[%clk 0:00:42]} 40. Kf2 {[%clk 0:00:21]}  Qa2+ {[%clk 0:00:40]} 41. Kf3 {[%clk 0:00:21]}  Qb1 {[%clk 0:00:41]} 42. Kf2 {[%clk 0:00:21]}  Qc2+ {[%clk 0:00:41]} 43. Kf3 {[%clk 0:00:22]}  Qd1+ {[%clk 0:00:41]} 44. Kf2 {[%clk 0:00:21]}  Qd2+ {[%clk 0:00:34]} 45. Kf3 {[%clk 0:00:21]}  Qd1+ {[%clk 0:00:27]} 46. Kf2 {[%clk 0:00:21]}  Qc2+ {[%clk 0:00:27]} 47. Kf3 {[%clk 0:00:21]}  f6 {[%clk 0:00:25]} 48. Nc5 {[%clk 0:00:18]}  Qb1 {[%clk 0:00:22]} 49. Rd7+ {[%clk 0:00:18]}  Kg6 {[%clk 0:00:20]} 50. Kg2 {[%clk 0:00:15]}  h4 {[%clk 0:00:17]} 51. gxh4 {[%clk 0:00:14]}  Qxb4 {[%clk 0:00:17]} 52. Rc7 {[%clk 0:00:13]}  Qd2+ {[%clk 0:00:17]} 53. Kf3 {[%clk 0:00:12]}  Kh5 {[%clk 0:00:16]} 54. Nd7 {[%clk 0:00:10]}  Qd6 {[%clk 0:00:15]} 55. Rb7 {[%clk 0:00:06]}  Kxh4 {[%clk 0:00:15]} 56. Rxa7 {[%clk 0:00:06]}  Qd1+ {[%clk 0:00:13]} 57. Kf2 {[%clk 0:00:06]}  Qc2+ {[%clk 0:00:11]} 58. Kf3 {[%clk 0:00:06]}  Qc6 {[%clk 0:00:11]} 59. Nf8 {[%clk 0:00:06]}  Qe8 {[%clk 0:00:08]} 60. Nd7 {[%clk 0:00:04]}  Qh5+ {[%clk 0:00:06]} 61. Kf2 {[%clk 0:00:04]}  Qg6 {[%clk 0:00:06]} 62. Ra6 {[%clk 0:00:04]}  Qg3+ {[%clk 0:00:07]} 63. Kf1 {[%clk 0:00:04]}  Qf3+ {[%clk 0:00:07]} 64. Ke1 {[%clk 0:00:04]}  Qxe3+ {[%clk 0:00:07]} 65. Kf1 {[%clk 0:00:04]}  Qd3+ {[%clk 0:00:08]} 66. Kf2 {[%clk 0:00:05]}  Qxa6 {[%clk 0:00:09]} 67. Nxf6 {[%clk 0:00:05]}  Qxf6+ {[%clk 0:00:09]} 0-1


[Site "https://www.chess.com"]